fUST/lending_fUST_20240822
["ID","MTS","AMOUNT","RATE_DAILY","PERIOD"]
[335505678,1724290240849,-210.864821,0.00021,2]
[335505679,1724290240859,-151.0,0.00021,2]
[335505680,1724290240868,-151.0,0.00021,2]
[335505681,1724290240878,-151.0,0.00021,2]
[335505682,1724290240888,-151.0,0.00021,2]
[335505683,1724290240898,-151.0,0.00021,2]
[335505684,1724290240910,-652.4958,0.00021,2]
[335505685,1724290240921,-151.0,0.00021,2]
[335505686,1724290240933,-652.4958,0.00021,2]
[335505687,1724290240944,-190.038474,0.00021,2]
[335505688,1724290240953,-192.386316,0.00021,2]
[335505689,1724290240964,-151.0,0.00021,2]
[335505690,1724290240974,-192.386316,0.00021,2]
[335505691,1724290240984,-171.48053,0.00021,2]
[335505692,1724290240996,-171.48053,0.00021,2]
[335505693,1724290241006,-151.0,0.00021,2]
[335505694,1724290241016,-151.0,0.00021,2]
[335505695,1724290241026,-151.0,0.00021,2]
[335505696,1724290241036,-299.519668,0.00021,2]
[335505697,1724290241048,-299.519668,0.00021,2]
[335505698,1724290241059,-244.593459,0.00021,2]
[335505699,1724290241069,-244.593459,0.00021,2]
[335505700,1724290241080,-151.0,0.00021,2]
[335505701,1724290241091,-151.0,0.00021,2]
[335505702,1724290241103,-258.55026975,0.00021,2]
[335505703,1724290241114,-5711.76414089,0.00021,2]
[335505704,1724290241126,-10148.06234563,0.00021,2]
[335505705,1724290241139,-233.00336597,0.00021,2]
[335505706,1724290241151,-354.696302,0.00021,2]
[335505707,1724290241162,-354.696302,0.00021,2]
[335505708,1724290241172,-151.0,0.00021,2]
[335505709,1724290241184,-151.0,0.00021,2]
[335505710,1724290241194,-266.435916,0.00021,2]
[335505711,1724290241205,-266.435916,0.00021,2]
[335505712,1724290241215,-266.435916,0.00021,2]
[335505713,1724290241227,-266.435916,0.00021,2]
[335505714,1724290241238,-151.0,0.00021,2]
[335505715,1724290241249,-2343.95,0.00021,2]
[335505716,1724290241260,-151.0,0.00021,2]
[335505717,1724290241271,-465.00021669,0.00021112,2]
[335505718,1724290241282,-504.39808835,0.000212,2]
[335505719,1724290241293,-158.54777414,0.000212,30]
[335505720,1724290241305,-200.87133103,0.00021293,2]
[335505721,1724290241316,-660.34489366,0.00021612,2]
[335505722,1724290241326,-151.0,0.00021918,2]
[335505723,1724290241338,-151.0,0.00021918,2]
[335505724,1724290241348,-151.0,0.00021918,2]
[335505725,1724290241360,-151.0,0.00021918,2]
[335505726,1724290241371,-351.772387,0.00021918,2]
[335505727,1724290241384,-351.772387,0.00021918,2]
[335505728,1724290241395,-351.772387,0.00021918,2]
[335505729,1724290241408,-351.772387,0.00021918,2]
[335505730,1724290241420,-351.772387,0.00021918,2]
[335505731,1724290241434,-351.772387,0.00021918,2]
[335505732,1724290241445,-351.772387,0.00021918,2]
[335505733,1724290241457,-351.772387,0.00021918,2]
[335505734,1724290241468,-351.772387,0.00021918,2]
[335505735,1724290241478,-351.772387,0.00021918,2]
[335505736,1724290241488,-351.772387,0.00021918,2]
[335505737,1724290241497,-351.772387,0.00021918,2]
[335505738,1724290241507,-351.772387,0.00021918,2]
[335505739,1724290241517,-351.772387,0.00021918,2]
[335505740,1724290241527,-351.772387,0.00021918,2]
[335505741,1724290241536,-351.772387,0.00021918,2]
[335505742,1724290241546,-351.772387,0.00021918,2]
[335505743,1724290241555,-351.772387,0.00021918,2]
[335505744,1724290241565,-160.8404123,0.00022,2]
[335505745,1724290241576,-1314.02705259,0.000223,2]
[335505746,1724290241586,-266.435916,0.000223,7]
[335505747,1724290241595,-266.435908,0.000223,7]
[335505748,1724290241605,-351.772387,0.000223,7]
[335505749,1724290241615,-351.772381,0.000223,7]
[335505750,1724290241625,-409.0504316,0.00022759,2]
[335505751,1724290241635,-14245.63359921,0.00022869,3]
[335505821,1724290243669,-2713.40505829,0.0001026,2]
[335505823,1724290243681,-188.6196501,0.00011842,2]
[335505826,1724290243692,-151.0,0.00013699,2]
[335505829,1724290243702,-463.483696,0.00013699,2]
[335505834,1724290243715,-151.0,0.00014,2]
[335505838,1724290243726,-139.44750124,0.00014236,2]
[335506057,1724290246505,-229.830374,0.00013699,2]
[335506059,1724290246514,-463.483696,0.00014,2]
[335506061,1724290246523,-229.830374,0.00014,2]
[335506063,1724290246533,-11.55249876,0.00014236,2]
[335506065,1724290246543,-463.483696,0.00014236,2]
[335506067,1724290246553,-229.830374,0.00014236,2]
[335506069,1724290246563,-229.830374,0.0002,2]
[335506071,1724290246572,-151.0,0.0002,2]
[335506073,1724290246582,-463.483696,0.0002,2]
[335506075,1724290246591,-229.830374,0.0002,2]
[335506077,1724290246601,-229.830374,0.00020899,2]
[335506079,1724290246611,-151.0,0.00020899,2]
[335506081,1724290246620,-463.483696,0.00020899,2]
[335506084,1724290246629,-229.830374,0.00020899,2]
[335506087,1724290246640,-166.97,0.0002098,3]
[335506090,1724290246650,-229.830374,0.0002099,2]
[335506092,1724290246659,-229.830374,0.0002099,2]
[335506094,1724290246669,-151.0,0.0002099,2]
[335506096,1724290246678,-290.086579,0.0002099,2]
[335506098,1724290246688,-463.483696,0.0002099,2]
[335506100,1724290246698,-229.830374,0.0002099,2]
[335506102,1724290246707,-463.483696,0.0002099,2]
[335506104,1724290246720,-229.830374,0.0002099,2]
[335506106,1724290246730,-97.25325041,0.00021,2]
[335506108,1724290246742,-53.74674959,0.00021,2]
[335506110,1724290246751,-229.830374,0.00021,2]
[335506112,1724290246761,-229.830374,0.00021,2]
[335506113,1724290246771,-229.830374,0.00021,2]
[335506114,1724290246780,-463.483696,0.00021,2]
[335506115,1724290246790,-229.830374,0.00021,2]
[335506116,1724290246800,-463.483696,0.00021,2]
[335506118,1724290246810,-151.0,0.000223,7]
[335506120,1724290246820,-229.830374,0.000223,7]
[335506121,1724290246829,-333.94,0.0002235,3]
[335506122,1724290246838,-51333.22719829,0.00022869,3]
[335506124,1724290246848,-210.864821,0.00022871,7]
[335506125,1724290246857,-210.864821,0.00022871,7]
[335506127,1724290246867,-236.231447,0.00022871,7]
[335506129,1724290246878,-151.0,0.00022871,7]
[335506130,1724290246890,-151.0,0.00022871,7]
[335506132,1724290246899,-151.0,0.00022871,7]
[335506133,1724290246909,-151.0,0.00022871,7]
[335506135,1724290246919,-652.4958,0.00022871,7]
[335506137,1724290246929,-151.0,0.00022871,7]
[335506138,1724290246939,-652.4958,0.00022871,7]
[335506140,1724290246948,-192.386316,0.00022871,7]
[335506141,1724290246957,-151.0,0.00022871,7]
[335506143,1724290246966,-192.386316,0.00022871,7]
[335506144,1724290246976,-171.48053,0.00022871,7]
[335506146,1724290246987,-171.48053,0.00022871,7]
[335506148,1724290246996,-151.0,0.00022871,7]
[335506149,1724290247006,-151.0,0.00022871,7]
[335506151,1724290247016,-151.0,0.00022871,7]
[335506153,1724290247025,-299.519668,0.00022871,7]
[335506154,1724290247034,-299.519668,0.00022871,7]
[335506156,1724290247044,-244.593459,0.00022871,7]
[335506157,1724290247053,-244.593459,0.00022871,7]
[335506159,1724290247062,-151.0,0.00022871,7]
[335506161,1724290247072,-240.41398,0.00022871,7]
[335506162,1724290247081,-354.696302,0.00022871,7]
[335506164,1724290247090,-354.696302,0.00022871,7]
[335506166,1724290247100,-151.0,0.00022871,7]
[335506167,1724290247109,-151.0,0.00022871,7]
[335506169,1724290247118,-151.0,0.00022871,7]
[335506171,1724290247129,-219.917966,0.00022879,7]
[335506172,1724290247138,-219.917966,0.00022879,7]
[335506174,1724290247148,-151.0,0.00022879,7]
[335506176,1724290247158,-151.0,0.00022879,7]
[335506181,1724290247209,-151.0,0.00022879,7]
[335506182,1724290247218,-151.0,0.00022879,7]
[335506184,1724290247228,-151.0,0.00022879,7]
[335506186,1724290247238,-239.445576,0.00022879,7]
[335506187,1724290247247,-151.0,0.00022879,7]
[335506189,1724290247256,-151.0,0.00022879,7]
[335506191,1724290247268,-239.54490623,0.00023,2]
[335506193,1724290247278,-11402.02376786,0.00023,2]
[335506194,1724290247287,-151.0,0.0002338,7]
[335506196,1724290247299,-151.0,0.0002338,7]
[335506198,1724290247308,-151.0,0.0002338,7]
[335506199,1724290247319,-151.0,0.0002338,7]
[335506201,1724290247328,-652.4958,0.0002338,7]
[335506203,1724290247337,-151.0,0.0002338,7]
[335506204,1724290247347,-652.4958,0.0002338,7]
[335506206,1724290247357,-192.386316,0.0002338,7]
[335506208,1724290247366,-151.0,0.0002338,7]
[335506210,1724290247379,-192.386316,0.0002338,7]
[335506211,1724290247395,-171.48053,0.0002338,7]
[335506213,1724290247407,-171.48053,0.0002338,7]
[335506215,1724290247417,-151.0,0.0002338,7]
[335506217,1724290247426,-151.0,0.0002338,7]
[335506218,1724290247435,-157.552748,0.0002338,7]
[335506220,1724290247444,-299.519668,0.0002338,7]
[335506222,1724290247454,-299.519668,0.0002338,7]
[335506223,1724290247463,-244.593459,0.0002338,7]
[335506225,1724290247473,-244.593459,0.0002338,7]
[335506227,1724290247482,-151.0,0.0002338,7]
[335506228,1724290247491,-354.696302,0.0002338,7]
[335506230,1724290247501,-354.696302,0.0002338,7]
[335506232,1724290247511,-151.0,0.0002338,7]
[335506233,1724290247521,-151.0,0.0002338,7]
[335506235,1724290247529,-151.0,0.0002338,7]
[335506237,1724290247539,-210.864821,0.0002339,7]
[335506238,1724290247548,-210.864821,0.0002339,7]
[335506240,1724290247558,-1452.99969567,0.0002339,2]
[335506242,1724290247568,-219.917966,0.00023469,7]
[335506243,1724290247578,-219.917966,0.00023469,7]
[335506245,1724290247587,-194.693781,0.0002347,7]
[335506247,1724290247596,-151.0,0.0002347,7]
[335506249,1724290247606,-210.864821,0.0002347,7]
[335506251,1724290247616,-210.864821,0.0002347,7]
[335506254,1724290247631,-151.0,0.0002347,7]
[335506256,1724290247640,-151.0,0.0002347,7]
[335506258,1724290247650,-151.0,0.0002347,7]
[335506260,1724290247660,-151.0,0.0002347,7]
[335506261,1724290247669,-151.0,0.0002347,7]
[335506262,1724290247678,-151.0,0.0002347,7]
[335506263,1724290247688,-652.4958,0.0002347,7]
[335506264,1724290247697,-652.4958,0.0002347,7]
[335506265,1724290247706,-192.386316,0.0002347,7]
[335506266,1724290247718,-151.0,0.0002347,7]
[335506267,1724290247729,-192.386316,0.0002347,7]
[335506268,1724290247739,-171.48053,0.0002347,7]
[335506269,1724290247749,-171.48053,0.0002347,7]
[335506270,1724290247760,-151.0,0.0002347,7]
[335506271,1724290247769,-151.0,0.0002347,7]
[335506272,1724290247778,-299.519668,0.0002347,7]
[335506273,1724290247790,-299.519668,0.0002347,7]
[335506274,1724290247799,-244.593459,0.0002347,7]
[335506275,1724290247811,-65578.8607975,0.0002347,3]
[335506276,1724290247822,-244.593459,0.0002347,7]
[335506277,1724290247832,-151.0,0.0002347,7]
[335506279,1724290247843,-354.696302,0.0002347,7]
[335506280,1724290247853,-354.696302,0.0002347,7]
[335506281,1724290247863,-151.0,0.0002347,7]
[335506283,1724290247879,-151.0,0.0002347,7]
[335506284,1724290247888,-154.187153,0.0002347,7]
[335506286,1724290247898,-219.917966,0.0002348,7]
[335506289,1724290247910,-219.917966,0.0002348,7]
[335506291,1724290247920,-219.917966,0.0002348,7]
[335506293,1724290247930,-219.917966,0.0002348,7]
[335506295,1724290247940,-151.0,0.0002348,7]
[335506297,1724290247950,-210.864821,0.0002348,7]
[335506299,1724290247960,-210.864821,0.0002348,7]
[335506301,1724290247973,-210.864821,0.0002348,7]
[335506303,1724290247983,-210.864821,0.0002348,7]
[335506306,1724290247992,-151.0,0.0002348,7]
[335506308,1724290248003,-151.0,0.0002348,7]
[335506310,1724290248014,-284.833336,0.0002348,7]
[335506312,1724290248024,-1200.0,0.0002348,7]
[335506314,1724290248033,-1200.0,0.0002348,7]
[335506316,1724290248043,-1200.0,0.0002348,7]
[335506318,1724290248052,-1200.0,0.0002348,7]
[335506320,1724290248062,-1200.0,0.0002348,7]
[335506322,1724290248071,-1200.0,0.0002348,7]
[335506324,1724290248082,-1200.0,0.0002348,7]
[335506326,1724290248092,-1200.0,0.0002348,7]
[335506328,1724290248102,-1200.0,0.0002348,7]
[335506330,1724290248111,-1200.0,0.0002348,7]
[335506332,1724290248122,-1200.0,0.0002348,7]
[335506335,1724290248134,-1200.0,0.0002348,7]
[335506337,1724290248145,-1200.0,0.0002348,7]
[335506339,1724290248156,-1200.0,0.0002348,7]
[335506341,1724290248165,-1200.0,0.0002348,7]
[335506343,1724290248175,-1200.0,0.0002348,7]
[335506345,1724290248185,-1200.0,0.0002348,7]
[335506347,1724290248195,-1200.0,0.0002348,7]
[335506349,1724290248204,-1200.0,0.0002348,7]
[335506351,1724290248214,-1200.0,0.0002348,7]
[335506353,1724290248223,-1200.0,0.0002348,7]
[335506355,1724290248234,-1200.0,0.0002348,7]
[335506357,1724290248244,-1200.0,0.0002348,7]
[335506359,1724290248253,-1200.0,0.0002348,7]
[335506361,1724290248263,-1200.0,0.0002348,7]
[335506363,1724290248273,-1200.0,0.0002348,7]
[335506365,1724290248284,-1200.0,0.0002348,7]
[335506367,1724290248293,-1200.0,0.0002348,7]
[335506369,1724290248303,-1200.0,0.0002348,7]
[335506371,1724290248312,-1200.0,0.0002348,7]
[335506373,1724290248323,-1200.0,0.0002348,7]
[335506376,1724290248332,-1200.0,0.0002348,7]
[335506378,1724290248342,-1200.0,0.0002348,7]
[335506380,1724290248352,-1200.0,0.0002348,7]
[335506382,1724290248361,-1200.0,0.0002348,7]
[335506384,1724290248370,-1200.0,0.0002348,7]
[335506386,1724290248382,-482.081212,0.0002348,7]
[335506388,1724290248391,-151.0,0.0002348,7]
[335506390,1724290248400,-151.0,0.0002348,7]
[335506392,1724290248409,-151.0,0.0002348,7]
[335506394,1724290248419,-151.0,0.0002348,7]
[335506396,1724290248430,-151.0,0.0002348,7]
[335506398,1724290248439,-151.0,0.0002348,7]
[335506400,1724290248449,-151.0,0.0002348,7]
[335506403,1724290248458,-151.0,0.0002348,7]
[335506405,1724290248478,-652.4958,0.0002348,7]
[335506407,1724290248488,-652.4958,0.0002348,7]
[335506409,1724290248497,-652.4958,0.0002348,7]
[335506411,1724290248507,-652.4958,0.0002348,7]
[335506413,1724290248516,-192.386316,0.0002348,7]
[335506415,1724290248525,-192.386316,0.0002348,7]
[335506417,1724290248535,-192.386316,0.0002348,7]
[335506419,1724290248545,-270.990981,0.0002348,7]
[335506421,1724290248554,-192.386316,0.0002348,7]
[335506423,1724290248563,-192.386316,0.0002348,7]
[335506425,1724290248573,-192.386316,0.0002348,7]
[335506427,1724290248582,-171.48053,0.0002348,7]
[335506429,1724290248591,-171.48053,0.0002348,7]
[335506431,1724290248600,-171.48053,0.0002348,7]
[335506433,1724290248610,-171.48053,0.0002348,7]
[335506435,1724290248619,-171.48053,0.0002348,7]
[335506438,1724290248630,-171.48053,0.0002348,7]
[335506440,1724290248640,-171.48053,0.0002348,7]
[335506442,1724290248649,-171.48053,0.0002348,7]
[335506444,1724290248659,-151.0,0.0002348,7]
[335506446,1724290248668,-151.0,0.0002348,7]
[335506448,1724290248678,-151.0,0.0002348,7]
[335506450,1724290248687,-151.0,0.0002348,7]
[335506452,1724290248697,-244.16183,0.0002348,7]
[335506454,1724290248706,-299.519668,0.0002348,7]
[335506456,1724290248720,-299.519668,0.0002348,7]
[335506458,1724290248729,-299.519668,0.0002348,7]
[335506460,1724290248739,-299.519668,0.0002348,7]
[335506462,1724290248747,-244.593459,0.0002348,7]
[335506464,1724290248758,-244.593459,0.0002348,7]
[335506466,1724290248767,-244.593459,0.0002348,7]
[335506468,1724290248776,-244.593459,0.0002348,7]
[335506470,1724290248786,-244.593459,0.0002348,7]
[335506472,1724290248796,-244.593459,0.0002348,7]
[335506473,1724290248806,-244.593459,0.0002348,7]
[335506474,1724290248816,-244.593464,0.0002348,7]
[335506475,1724290248825,-151.0,0.0002348,7]
[335506476,1724290248835,-151.0,0.0002348,7]
[335506477,1724290248845,-151.0,0.0002348,7]
[335506478,1724290248855,-151.0,0.0002348,7]
[335506479,1724290248864,-354.696302,0.0002348,7]
[335506480,1724290248874,-354.696302,0.0002348,7]
[335506481,1724290248883,-354.696302,0.0002348,7]
[335506482,1724290248893,-354.696302,0.0002348,7]
[335506483,1724290248902,-354.696302,0.0002348,7]
[335506484,1724290248912,-354.696311,0.0002348,7]
[335506485,1724290248921,-151.0,0.0002348,7]
[335506486,1724290248931,-151.0,0.0002348,7]
[335506487,1724290248940,-151.0,0.0002348,7]
[335506488,1724290248950,-151.0,0.0002348,7]
[335506489,1724290248961,-177.200604,0.0002348,7]
[335506490,1724290248971,-4195.87347215,0.0002348,2]
[335507072,1724291432612,-154.72922386,0.00012934,2]
[335507074,1724291432622,-144.77083338,0.00013599,2]
[335507462,1724291438783,-108.88938871,0.00013599,2]
[335507464,1724291438794,-774.00970956,0.00014245,2]
[335507863,1724291443950,-42.88530238,0.00014245,2]
[335508073,1724291650293,279.11894476,9.906e-05,2]
[335508075,1724291726249,2837.09395364,9.906e-05,2]
[335508158,1724292638818,-254.63533274,0.00012779,2]
[335508160,1724292638833,-992.04453473,0.00012779,2]
[335508162,1724292638843,-156.2862636,0.00012971,2]
[335508164,1724292638855,-155.0382856,0.00013051,2]
[335508167,1724292638866,-1635.57462788,0.00013716,2]
[335508169,1724292638881,-1148.44801526,0.00013716,2]
[335508241,1724292641196,-474.25173268,0.00013716,2]
[335508243,1724292641209,-598.0205773,0.00013716,2]
[335508246,1724292641221,-512.37431689,0.00013716,2]
[335508336,1724292644126,-507.65,0.00013716,2]
[335508340,1724292644139,-342.01823752,0.00013716,2]
[335508342,1724292644148,-150.0,0.00013949,2]
[335508345,1724292644158,-154.90348148,0.00014245,2]
[335508348,1724292644167,-322.207772,0.00014247,2]
[335508351,1724292644177,-4390.82134414,0.00014634,2]
[335508628,1724292647217,-20509.17865586,0.00014634,2]
[335508629,1724292647227,-613.54540212,0.00015337,2]
[335508630,1724292647238,-250.0,0.00015437,2]
[335508631,1724292647247,-250.0,0.00015479,2]
[335508632,1724292647256,-250.0,0.00015521,2]
[335508633,1724292647267,-250.0,0.00015564,2]
[335508634,1724292647276,-250.0,0.00015606,2]
[335508635,1724292647286,-250.0,0.00015648,2]
[335508636,1724292647296,-250.0,0.00015691,2]
[335508637,1724292647306,-250.0,0.00015733,2]
[335508638,1724292647316,-250.0,0.00015775,2]
[335508639,1724292647326,-250.0,0.00015818,2]
[335508640,1724292647337,-250.0,0.0001586,2]
[335508641,1724292647346,-250.0,0.00015902,2]
[335508642,1724292647356,-250.0,0.00015945,2]
[335508644,1724292647367,-250.0,0.00015987,2]
[335508646,1724292647378,-250.0,0.00016029,2]
[335508648,1724292647388,-250.0,0.00016072,2]
[335508650,1724292647398,-250.0,0.00016114,2]
[335508652,1724292647409,-250.0,0.00016156,2]
[335508654,1724292647419,-250.0,0.00016199,2]
[335508657,1724292647429,-250.0,0.00016241,2]
[335508659,1724292647439,-3153.53526033,0.00017865,2]
[335508661,1724292647449,-613.54540208,0.00018132,2]
[335508663,1724292647458,-162.852486,0.00019178,2]
[335508664,1724292647468,-161.635319,0.00019178,2]
[335508666,1724292647477,-322.207772,0.00020707,2]
[335508668,1724292647486,-613.54540208,0.00020926,2]
[335508670,1724292647500,-474.44507928,0.00021085,2]
[335508672,1724292647511,-155.1327696,0.00021096,2]
[335508675,1724292647523,-153.0,0.00021096,2]
[335508677,1724292647534,-153.0,0.00021096,2]
[335508679,1724292647546,-153.0,0.00021096,2]
[335508681,1724292647556,-153.0,0.00021096,2]
[335508683,1724292647566,-174.4293772,0.00021096,2]
[335508685,1724292647578,-153.0,0.00022356,2]
[335508687,1724292647592,-153.0,0.00022356,2]
[335508690,1724292647602,-153.0,0.00022356,2]
[335508692,1724292647612,-153.0,0.00022356,2]
[335508694,1724292647624,-153.0,0.00022356,2]
[335508696,1724292647634,-155.5022428,0.00022356,2]
[335508698,1724292647645,-306.0,0.00022356,2]
[335508700,1724292647656,-502.45856898,0.0002238,2]
[335508702,1724292647667,-190.8,0.00022963,2]
[335508705,1724292647677,-1097.77,0.00023,2]
[335508707,1724292647687,-2000.0,0.00023259,2]
[335508709,1724292647698,-165.08622343,0.00023287,2]
[335508710,1724292647708,-500.94,0.00023339,3]
[335508712,1724292647719,-49418.3209152,0.00023349,3]
[335508714,1724292647729,-88888.0,0.00023359,3]
[335508716,1724292647739,-243.1173,0.00023363,2]
[335508717,1724292647750,-1588.95110912,0.0002338,2]
[335508718,1724292647763,-7772.82732804,0.00023382,2]
[335508719,1724292647773,-49418.3209152,0.00023387,3]
[335508720,1724292647784,-151.0,0.00023387,7]
[335508721,1724292647795,-29.70509718,0.00023387,7]
[335508739,1724292902403,310.54501989,0.00013971,2]
[335508745,1724293064173,5000.0,0.00014,2]
[335508753,1724293347027,7513.82,0.00016555,30]
[335508764,1724293620406,160.40554934,0.00013971,2]
[335508976,1724293838021,-311.812093,0.00014247,2]
[335508977,1724293838032,-311.812093,0.00020707,2]
[335508978,1724293838042,-97.21624494,0.00021389,2]
[335508979,1724293838055,-2459.29169716,0.00021389,2]
[335508980,1724293838066,-300.0,0.00021532,2]
[335508981,1724293838076,-6907.46438931,0.00021533,2]
[335508982,1724293838089,-806.37061774,0.00021533,2]
[335509987,1724293852439,1503.69614752,0.00014,2]
[335510151,1724294023129,2170.22993697,0.00013971,2]
[335510152,1724294043612,1869.40092996,0.00013971,2]
[335510153,1724294087244,150324.38856203,0.0002031,120]
[335510166,1724294970684,2442.68303719,0.00013971,2]
[335510167,1724294975867,2600.914069,0.00013971,2]
[335510191,1724295032250,-192.05521967,0.00014147,2]
[335510193,1724295032261,-197.09731142,0.00014147,2]
[335510195,1724295032271,-280.630883,0.00014247,2]
[335510197,1724295032280,-1278.09152882,0.00018391,2]
[335510219,1724295038346,-23621.90847118,0.00018391,2]
[335510221,1724295038355,-534.7130683,0.00018811,2]
[335510223,1724295038365,-250.0,0.00018894,2]
[335510224,1724295038377,-250.0,0.00018946,2]
[335510225,1724295038390,-250.0,0.00018998,2]
[335510226,1724295038401,-250.0,0.0001905,2]
[335510227,1724295038411,-250.0,0.00019102,2]
[335510228,1724295038421,-250.0,0.00019154,2]
[335510229,1724295038432,-161.635319,0.00019178,2]
[335510230,1724295038443,-250.0,0.00019205,2]
[335510231,1724295038455,-250.0,0.00019257,2]
[335510232,1724295038466,-250.0,0.00019309,2]
[335510233,1724295038476,-250.0,0.00019361,2]
[335510234,1724295038486,-394.90715782,0.00019399,2]
[335510235,1724295038497,-250.0,0.00019413,2]
[335510236,1724295038508,-250.0,0.00019464,2]
[335510237,1724295038521,-500.0,0.00019499,7]
[335510238,1724295038532,-500.0,0.00019499,7]
[335510239,1724295038541,-8363.77280103,0.00019499,7]
[335510240,1724295038554,-2854.24719897,0.00019499,7]
[335510241,1724295038564,-912.87,0.00019499,7]
[335510242,1724295038575,-822.94,0.00019499,7]
[335510243,1724295038586,-1030.22,0.00019499,7]
[335510244,1724295038598,-963.11,0.00019499,7]
[335510245,1724295038609,-500.0,0.00019499,7]
[335510246,1724295038621,-4840.46,0.00019499,7]
[335510247,1724295038634,-500.0,0.00019499,7]
[335510248,1724295038646,-3000.0,0.000195,2]
[335510249,1724295038658,-257.62193432,0.000195,2]
[335510266,1724295040503,-326.7745905,0.000195,2]
[335510284,1724295043351,-500.0,0.00019499,7]
[335510285,1724295043363,-2418.60347518,0.000195,2]
[335510286,1724295043375,-250.0,0.00019516,2]
[335510287,1724295043387,-250.0,0.00019568,2]
[335510288,1724295043402,-250.0,0.0001962,2]
[335510289,1724295043413,-250.0,0.00019672,2]
[335510290,1724295043425,-250.0,0.00019723,2]
[335510291,1724295043435,-250.0,0.00019775,2]
[335510292,1724295043446,-250.0,0.00019827,2]
[335510293,1724295043457,-250.0,0.00019879,2]
[335510294,1724295043469,-500.0,0.00020046,7]
[335510295,1724295043479,-500.0,0.00020046,2]
[335510296,1724295043489,-500.0,0.00020047,7]
[335510297,1724295043498,-500.0,0.00020047,7]
[335510298,1724295043508,-11218.02,0.00020047,7]
[335510299,1724295043518,-912.87,0.00020047,7]
[335510300,1724295043531,-822.94,0.00020047,7]
[335510301,1724295043541,-1030.22,0.00020047,7]
[335510302,1724295043551,-963.11,0.00020047,7]
[335510303,1724295043562,-500.0,0.00020047,7]
[335510304,1724295043574,-500.0,0.00020047,7]
[335510305,1724295043585,-165.08622341,0.0002019,2]
[335510306,1724295043595,-2917.24124619,0.0002021,2]
[335510307,1724295043604,-4840.46,0.00020288,7]
[335510308,1724295043615,-4840.46,0.00020288,7]
[335510309,1724295043624,-32129.98536321,0.00020289,2]
[335510314,1724295043714,1001.67402907,0.00013971,2]
[335510424,1724295046250,-2622.41,0.00019499,7]
[335510426,1724295046260,-501.09947217,0.00020046,7]
[335510428,1724295046270,-500.0,0.00020047,7]
[335510430,1724295046280,-15719.56267196,0.00020289,2]
[335510447,1724295218411,2166.4854483,0.00013971,2]
[335510448,1724295238791,195.26939999,0.00013971,2]
[335510449,1724295245933,819.26309603,0.00013971,2]
[335510450,1724295253677,756.74724922,0.00013971,2]
[335510452,1724295282632,187.86974768,0.00013971,2]
[335510453,1724295305115,494.42699356,0.00013971,2]
[335510468,1724295957377,20837.54983088,0.00013971,2]
[335510472,1724295992221,5130.935,0.00014,2]
[335510479,1724296153310,248.13675688,0.00014,2]
[335510480,1724296160400,1675.63266765,0.00014,2]
[335510481,1724296185769,229.69473588,0.000139,2]
[335510541,1724296232401,-304.09934,0.00014247,2]
[335510543,1724296232413,-681.8205116,0.00016911,2]
[335510546,1724296232425,-4085.30190897,0.00016969,2]
[335510548,1724296232435,-24900.0,0.0001735,2]